bitfinex/quotes_BTCUSD_20220226
["timestamp","ask_amount","ask_price","bid_price","bid_amount"]
[1645874456050,0.01202841,39004.0,39000.0,0.203292]
[1645874456250,0.01202841,39004.0,39000.0,0.20358319]
[1645874456649,0.01202841,39004.0,39000.0,0.20258319]
[1645874457249,0.01202841,39004.0,39000.0,0.204292]
[1645874457456,0.01202841,39004.0,39000.0,0.20457537]
[1645874458550,0.01202841,39004.0,39000.0,0.202292]
[1645874458750,0.01202841,39004.0,39000.0,0.20257537]
[1645874459404,0.01202841,39004.0,39001.0,0.378553]
[1645874459806,0.18061109,39005.0,39002.0,1.1]
[1645874459807,0.1592815,39005.0,39002.0,1.1]
[1645874461006,0.1592815,39005.0,39002.0,1.10012998]
[1645874461211,0.07327041,39005.0,39002.0,0.00012998]
[1645874461416,0.07327041,39005.0,39002.0,0.00312998]
[1645874461417,0.08601109,39003.0,39002.0,0.00312998]
[1645874461808,0.15921109,39003.0,39002.0,0.00312998]
[1645874462007,0.15921109,39003.0,39002.0,0.003]
[1645874462612,0.15921109,39003.0,39001.0,0.00012998]
[1645874463052,0.08601109,39003.0,39001.0,0.00012998]
[1645874463248,0.08601109,39003.0,38999.0,0.18811573]
[1645874463448,0.0732,39001.0,39000.0,0.00012999]
[1645874464448,0.0732,39001.0,38999.0,0.18811573]
[1645874464648,0.0732,39001.0,38999.0,0.00030618]
[1645874465449,0.0732,39001.0,38999.0,0.00130618]
[1645874465651,0.0732,39001.0,38999.0,0.001]
[1645874466694,0.0732,39001.0,38998.0,0.00030618]
[1645874466894,0.0732,39001.0,38996.0,0.20773506]
[1645874467197,0.0732,39001.0,38998.0,0.00030618]
[1645874467994,0.15921109,39001.0,38998.0,0.00030618]
[1645874468199,0.08601109,38999.0,38993.0,0.001]
[1645874468396,0.08601109,38999.0,38998.0,0.00030618]
[1645874468595,0.23688109,38999.0,38998.0,0.00030618]
[1645874469196,0.26247109,38999.0,38998.0,0.00030618]
[1645874469397,0.08601109,38992.0,38991.0,0.62256104]
[1645874470197,0.13741109,38992.0,38991.0,0.62256104]
[1645874471453,0.13841109,38992.0,38991.0,0.62256104]
[1645874472653,0.13741109,38992.0,38991.0,0.62256104]
[1645874477102,0.26247109,38992.0,38991.0,0.62256104]
[1645874477504,0.26447109,38992.0,38991.0,0.62256104]
[1645874478551,0.26247109,38992.0,38991.0,0.62256104]
[1645874479452,0.26347109,38992.0,38991.0,0.62256104]
[1645874480253,0.26347109,38992.0,38991.0,0.62244251]
[1645874481253,0.26247109,38992.0,38991.0,0.62244251]
[1645874481454,0.26347109,38992.0,38991.0,0.62244251]
[1645874481900,0.17746,38992.0,38991.0,0.62244251]
[1645874482299,0.23847109,38992.0,38991.0,0.62244251]
[1645874482604,0.38747109,38992.0,38991.0,0.62244251]
[1645874482803,0.38747109,38992.0,38991.0,0.62190251]
[1645874482804,0.39772109,38992.0,38991.0,0.62190251]
[1645874483103,2.35816,38991.0,38990.0,0.00023548]
[1645874483301,4.07185263,38991.0,38980.0,0.001]
[1645874483608,0.07153467,38981.0,38980.0,0.001]
[1645874483801,0.23747109,38981.0,38980.0,0.001]
[1645874488666,0.015,38982.0,38980.0,0.379669]
[1645874488862,0.1,38984.0,38981.0,0.678669]
[1645874489107,0.1,38984.0,38982.0,1.604259]
[1645874489306,0.1,38984.0,38983.0,0.678669]
[1645874489505,0.025,39000.0,38983.0,0.678669]
[1645874489704,0.025,39000.0,38991.0,0.17480983]
[1645874489905,0.025,39000.0,38985.0,0.351322]
[1645874490104,0.025,39000.0,38983.0,0.3]
[1645874490310,0.1309247,39001.0,38989.0,0.02559]
[1645874490505,0.1,39002.0,38990.0,0.39415019]
[1645874490506,0.1309247,39002.0,38990.0,0.39415019]
[1645874490707,0.38242622,39008.0,38991.0,0.31319908]
[1645874490905,0.04032622,39008.0,38992.0,0.378669]
[1645874491105,0.04032622,39008.0,38993.0,0.3]
[1645874491310,0.04032622,39008.0,39001.0,0.22706114]
[1645874492507,0.01532622,39008.0,39001.0,0.22706114]
[1645874493360,0.01632622,39008.0,39007.0,0.22853317]
[1645874493758,0.01632622,39008.0,39001.0,0.025654]
[1645874494657,0.01532622,39008.0,39001.0,0.025654]
[1645874495257,0.01532622,39008.0,39006.0,0.1882564]
[1645874497510,0.01532622,39008.0,39006.0,0.1892564]
[1645874498809,0.01532622,39008.0,39006.0,0.1882564]
[1645874499612,0.01532622,39008.0,39001.0,0.025655]
[1645874500013,0.01532622,39008.0,39000.0,0.3]
[1645874500218,0.01532622,39008.0,39001.0,0.478669]
[1645874500458,0.01532622,39008.0,39002.0,0.31421102]
[1645874500656,0.01532622,39008.0,39003.0,0.378669]
[1645874500856,0.01532622,39008.0,39004.0,0.3]
[1645874501057,0.01532622,39008.0,39005.0,0.378669]
[1645874501357,0.01532622,39008.0,39007.0,0.378669]
[1645874501957,0.01532622,39008.0,39007.0,0.377959]
[1645874502359,0.01532622,39008.0,39007.0,0.677959]
[1645874503358,0.01532622,39008.0,39007.0,0.679959]
[1645874506604,0.01532622,39008.0,39007.0,0.379959]
[1645874506804,0.01532622,39008.0,39002.0,0.01025]
[1645874507008,0.01532622,39008.0,38999.0,0.5971]
[1645874507869,0.01532622,39008.0,39002.0,0.19462654]
[1645874511607,0.01532622,39008.0,39002.0,0.19562654]
[1645874512211,0.01532622,39008.0,39003.0,0.3]
[1645874512408,0.01532622,39008.0,39002.0,0.19562654]
[1645874512606,0.01532622,39008.0,39003.0,0.3]
[1645874512806,0.01532622,39008.0,39003.0,0.325653]
[1645874513206,0.01532622,39008.0,39003.0,0.025653]
[1645874513406,0.01532622,39008.0,39003.0,0.325653]
[1645874514207,0.01532622,39008.0,39002.0,0.19462654]
[1645874515209,0.01532622,39008.0,39003.0,0.3]
[1645874515456,0.01532622,39008.0,39004.0,0.025653]
[1645874516858,0.01532622,39008.0,39005.0,0.378415]
[1645874517462,0.01532622,39008.0,39005.0,0.379415]
[1645874517759,0.01532622,39008.0,39006.0,0.378415]
[1645874518161,0.01532622,39008.0,39005.0,0.001]
[1645874518760,0.01532622,39008.0,39006.0,0.378415]
[1645874519414,0.01532622,39008.0,39006.0,0.380415]
[1645874520019,0.01532622,39008.0,39006.0,0.002]
[1645874520515,0.01532622,39008.0,39007.0,0.378415]
[1645874521318,0.01532622,39008.0,39005.0,0.025652]
[1645874521517,0.01532622,39008.0,39003.0,0.3]
[1645874522117,0.01441832,39008.0,39003.0,0.32559]
[1645874522318,0.01441832,39008.0,39003.0,0.3]
[1645874522528,0.01441832,39008.0,39002.0,0.33314325]
[1645874523558,0.01441832,39008.0,39002.0,0.33614325]
[1645874524758,0.01441832,39008.0,39002.0,0.33114325]
[1645874525559,0.01441832,39008.0,39002.0,0.19862654]
[1645874526805,0.01441832,39008.0,39002.0,0.19462654]
[1645874527503,0.01441832,39008.0,38999.0,0.3387]
[1645874529805,0.01441832,39008.0,38999.0,0.36429]
[1645874530006,0.01441832,39008.0,38999.0,0.66429]
[1645874532067,0.01441832,39008.0,38999.0,0.6387]
[1645874535105,0.01441832,39008.0,39004.0,0.17184815]
[1645874537109,0.01441832,39008.0,39004.0,0.17139155]
[1645874537512,0.01541832,39008.0,39004.0,0.17139155]
[1645874539556,0.01641832,39008.0,39000.0,0.122]
[1645874539960,0.01641832,39008.0,39001.0,0.3]
[1645874540360,0.01441832,39008.0,39005.0,7.145e-05]
[1645874541604,0.01441832,39008.0,39005.0,0.00107145]
[1645874542805,0.01441832,39008.0,39005.0,7.145e-05]
[1645874545556,0.01441832,39008.0,39004.0,0.20920571]
[1645874547660,0.01641832,39008.0,39003.0,7.126e-05]
[1645874548859,0.01441832,39008.0,39003.0,7.126e-05]
[1645874549522,0.064152,39007.0,39003.0,0.00107126]
[1645874549723,0.115552,39007.0,39003.0,0.00107126]
[1645874550519,0.115552,39007.0,39003.0,0.001]
[1645874550920,0.12559,39006.0,39002.0,6.596e-05]
[1645874551127,0.0514,39005.0,39002.0,6.596e-05]
[1645874551520,0.06165,39005.0,39002.0,6.596e-05]
[1645874551722,0.11165,39005.0,39002.0,6.596e-05]
[1645874552123,0.06165,39005.0,39002.0,6.596e-05]
[1645874552324,0.11165,39005.0,39002.0,6.596e-05]
[1645874552725,0.12699,39005.0,39002.0,6.596e-05]
[1645874553356,0.1014,39005.0,39002.0,6.596e-05]
[1645874553557,0.1024,39005.0,39002.0,6.596e-05]
[1645874553761,0.0524,39005.0,39002.0,6.596e-05]
[1645874554458,0.02559,39004.0,39002.0,6.596e-05]
[1645874554663,0.17699,39003.0,39002.0,6.596e-05]
[1645874554858,0.18724,39003.0,39002.0,6.596e-05]
[1645874555058,0.23724,39003.0,39002.0,6.596e-05]
[1645874555359,0.54811605,39003.0,39002.0,5.96e-06]
[1645874555559,0.54811605,39003.0,39002.0,6.84e-05]
[1645874555759,0.53704,39003.0,39002.0,6.84e-05]
[1645874555959,0.23724,39003.0,39002.0,6.84e-05]
[1645874556159,0.24976319,39003.0,39002.0,6.84e-05]
[1645874556906,0.24986803,39003.0,39002.0,6.84e-05]
[1645874557704,0.24061803,39003.0,39002.0,6.84e-05]
[1645874558906,0.23961803,39003.0,39002.0,6.84e-05]
[1645874559806,0.22699,39003.0,39002.0,6.84e-05]
[1645874560006,0.2396182,39003.0,39002.0,6.84e-05]
[1645874560209,6.46e-06,39002.0,39000.0,0.00188001]
[1645874560462,0.07699,39001.0,39000.0,0.00188001]
[1645874560664,0.32679,39001.0,39000.0,0.00188001]
[1645874560863,0.12699,39001.0,39000.0,0.00188001]
[1645874561863,0.1014,39001.0,39000.0,0.00188001]
[1645874562163,0.1514,39001.0,39000.0,0.00188001]
[1645874562566,0.2014,39001.0,39000.0,0.00188001]
[1645874562966,0.22699,39001.0,39000.0,0.00188001]
[1645874563767,0.2014,39001.0,39000.0,0.00188001]
[1645874563966,0.22699,39001.0,39000.0,0.00188001]
[1645874564803,0.2014,39001.0,39000.0,0.00188001]
[1645874565604,0.2024,39001.0,39000.0,0.00188001]
[1645874566808,0.2014,39001.0,39000.0,0.00188001]
[1645874567608,0.2034,39001.0,39000.0,0.00188001]
[1645874568264,0.2034,39001.0,39000.0,0.00143551]
[1645874568959,0.1014,39001.0,39000.0,0.00143551]
[1645874569363,0.0514,39001.0,39000.0,0.00143551]
[1645874570160,0.07699,39001.0,39000.0,0.00143551]
[1645874573915,0.0514,39001.0,39000.0,0.00143551]
[1645874579711,0.0464,39001.0,39000.0,0.00143551]
[1645874580307,0.04628018,39001.0,39000.0,0.00143551]
[1645874581709,0.04728018,39001.0,39000.0,0.00143551]
[1645874582107,0.07287018,39001.0,39000.0,0.00143551]
[1645874582507,0.17287018,39001.0,39000.0,0.00143551]
[1645874582972,1.15497018,39001.0,39000.0,0.00143551]
[1645874583277,0.02559,38995.0,38988.0,0.00026311]
[1645874583470,0.02559,38992.0,38980.0,0.1212]
[1645874583669,0.02559,38990.0,38980.0,0.1212]
[1645874583875,0.0514,38989.0,38980.0,0.1212]
[1645874584069,0.0514,38989.0,38980.0,0.001]
[1645874584873,0.115588,38989.0,38980.0,0.001]
[1645874585070,0.111088,38989.0,38980.0,0.001]
[1645874587210,0.111088,38989.0,38983.0,0.00029457]
[1645874588309,0.111088,38989.0,38980.0,0.001]
[1645874588510,0.111088,38989.0,38984.0,0.00029456]
[1645874588709,0.111088,38989.0,38984.0,0.19543221]
[1645874588710,0.0469,38989.0,38984.0,0.19543221]
[1645874589510,0.0469,38989.0,38984.0,0.19513765]
[1645874589710,0.0469,38989.0,38985.0,0.00028219]
[1645874590110,0.0469,38989.0,38984.0,0.19041984]
[1645874593375,0.064183,38988.0,38983.0,0.00030502]
[1645874593575,0.115583,38988.0,38983.0,0.00030502]
[1645874594214,0.115583,38988.0,38981.0,0.66413104]
[1645874594416,0.115583,38988.0,38983.0,0.00030502]
[1645874594815,0.141173,38988.0,38983.0,0.00030502]
[1645874595119,0.128395,38987.0,38983.0,0.00030502]
[1645874595315,0.0514,38986.0,38983.0,0.00030502]
[1645874595513,0.0514,38986.0,38981.0,0.66413104]
[1645874595715,0.0514,38986.0,38981.0,0.66380566]
[1645874595716,0.97559,38985.0,38981.0,0.66380566]
[1645874595915,0.0514,38984.0,38981.0,0.66380566]
[1645874597215,0.07699,38984.0,38981.0,0.66380566]
[1645874597622,0.064197,38983.0,38981.0,0.66380566]
[1645874597865,0.0514,38982.0,38981.0,0.66380566]
[1645874599764,0.0524,38982.0,38981.0,0.66380566]
[1645874600969,0.0514,38982.0,38981.0,0.66380566]
[1645874601819,0.114186,38986.0,38981.0,0.66380566]
[1645874602222,0.1024,38987.0,38981.0,0.66380566]
[1645874602419,0.0524,38987.0,38981.0,0.66380566]
[1645874602621,0.001,38987.0,38981.0,0.96380566]
[1645874603020,0.0732,38989.0,38986.0,0.1690235]
[1645874603220,0.0732,38989.0,38987.0,0.3]
[1645874603520,0.0732,38989.0,38986.0,0.1690235]
[1645874604419,0.07266808,38989.0,38986.0,0.1690235]
[1645874607571,0.07266808,38989.0,38987.0,0.3]
[1645874610414,0.07266808,38989.0,38986.0,0.1690235]
[1645874610913,0.07266808,38989.0,38987.0,0.3]
[1645874611114,0.07266808,38989.0,38986.0,0.1690235]
[1645874612214,0.07266808,38989.0,38986.0,0.16833531]
[1645874615773,0.07366808,38989.0,38986.0,0.16833531]
[1645874616169,0.07366808,38989.0,38986.0,0.18758431]
[1645874616620,0.07366808,38989.0,38987.0,0.3]
[1645874616821,0.07366808,38989.0,38988.0,0.378415]
[1645874617021,0.07266808,38989.0,38988.0,0.678415]
[1645874617222,0.07266808,38989.0,38988.0,0.32559]
[1645874617819,0.07366808,38989.0,38988.0,0.32559]
[1645874618823,0.07366808,38989.0,38988.0,0.3]
[1645874619121,0.07266808,38989.0,38988.0,0.3]
[1645874623869,0.07266808,38989.0,38983.0,0.3]
[1645874624322,0.0726,38987.0,38983.0,0.3]
[1645874625721,0.0736,38987.0,38983.0,0.3]
[1645874626320,0.0736,38987.0,38981.0,0.66380566]
[1645874626725,0.0514,38986.0,38981.0,0.66380566]
[1645874626923,0.06166,38986.0,38981.0,0.66380566]
[1645874627865,0.180785,38986.0,38981.0,0.66380566]
[1645874628467,0.02559,38985.0,38981.0,0.66380566]
[1645874628673,0.02559,38983.0,38981.0,0.66380566]
[1645874628864,0.0514,38982.0,38981.0,0.66380566]
[1645874629065,0.06166,38982.0,38981.0,0.66380566]
[1645874629765,0.0514,38982.0,38981.0,0.66380566]
[1645874631166,0.0726,38983.0,38981.0,0.96380566]
[1645874631373,0.0726,38983.0,38981.0,0.66380566]
[1645874631816,0.0766,38983.0,38981.0,0.66380566]
[1645874633016,0.0726,38983.0,38981.0,0.66380566]
[1645874633217,0.008,38982.0,38981.0,0.66380566]
[1645874633819,0.012,38982.0,38981.0,0.6637205]
[1645874635020,0.008,38982.0,38981.0,0.6637205]
[1645874635866,0.008,38982.0,38981.0,0.6647205]
[1645874636266,0.008,38982.0,38981.0,0.9647205]
[1645874637067,0.008,38982.0,38981.0,0.9637205]
[1645874637868,0.009,38982.0,38981.0,0.9637205]
[1645874639114,0.008,38982.0,38981.0,0.9637205]
[1645874639816,0.008,38982.0,38981.0,0.6657205]
[1645874641713,0.008,38982.0,38981.0,0.6637205]
[1645874641916,0.009,38982.0,38981.0,0.6637205]
[1645874643764,0.01,38982.0,38981.0,0.6637205]
[1645874645069,0.009,38982.0,38981.0,0.6637205]
[1645874645267,0.008,38982.0,38981.0,0.6637205]
[1645874645970,0.009,38982.0,38981.0,0.6637205]
[1645874647024,0.008,38982.0,38981.0,0.6637205]
[1645874649832,0.011,38982.0,38981.0,0.6637205]
[1645874650566,0.011,38982.0,38981.0,0.66378335]
[1645874651166,0.008,38982.0,38981.0,0.66378335]
[1645874651767,0.011,38982.0,38981.0,0.66378335]
[1645874653869,0.014,38982.0,38981.0,0.66378335]
[1645874654518,0.014,38982.0,38981.0,0.65973262]
[1645874655119,0.008,38982.0,38981.0,0.65973262]
[1645874655321,0.008,38982.0,38981.0,0.95973262]
[1645874655521,0.008,38982.0,38981.0,0.95979547]
[1645874655722,0.008,38982.0,38981.0,1.33821047]
[1645874655921,0.008,38982.0,38981.0,0.95979547]
[1645874657424,0.008,38982.0,38981.0,0.65979547]
[1645874658272,0.008,38982.0,38981.0,6.285e-05]
[1645874659075,0.008,38982.0,38981.0,0.64181196]
[1645874659775,0.008,38982.0,38981.0,0.64281196]
[1645874660575,0.008,38982.0,38981.0,0.64274911]
[1645874661174,0.008,38982.0,38981.0,0.64174911]
[1645874661821,0.008,38982.0,38981.0,0.64274911]
[1645874663220,0.008,38982.0,38981.0,0.64174911]
[1645874664023,0.009,38982.0,38981.0,0.64174911]
[1645874667068,0.008,38982.0,38981.0,0.64174911]
[1645874667875,0.009,38982.0,38981.0,0.64174911]
[1645874669128,0.008,38982.0,38981.0,0.64174911]
[1645874669527,0.0594,38982.0,38981.0,0.64174911]
[1645874669927,0.0604,38982.0,38981.0,0.64174911]
[1645874670128,0.08599,38982.0,38981.0,0.64174911]
[1645874671232,0.13499,38982.0,38981.0,0.64174911]
[1645874671432,0.13327106,38982.0,38981.0,0.64174911]
[1645874671828,0.13527106,38982.0,38981.0,0.64174911]
[1645874673376,0.13327106,38982.0,38981.0,0.64174911]
[1645874673977,0.13527106,38982.0,38981.0,0.64174911]
[1645874674377,0.43527106,38982.0,38981.0,0.64174911]
[1645874674577,0.13527106,38982.0,38981.0,0.64174911]
[1645874674879,0.43527106,38982.0,38981.0,0.64174911]
[1645874675078,0.43327106,38982.0,38981.0,0.64174911]
[1645874675980,0.53327106,38982.0,38981.0,0.64174911]
[1645874676179,0.78317106,38982.0,38981.0,0.64074911]
[1645874676478,0.88374054,38982.0,38981.0,0.64074911]
[1645874676927,1.03374054,38982.0,38981.0,0.63774911]
[1645874677128,1.05318041,38982.0,38981.0,0.29913791]
[1645874677331,1.22559,38981.0,38980.0,0.00030242]
[1645874677530,1.75541946,38981.0,38980.0,0.00030242]
[1645874677729,2.73908894,38981.0,38980.0,0.00030242]
[1645874677931,0.15402213,38980.0,38973.0,0.001]
[1645874678129,0.02559,38976.0,38971.0,0.011]
[1645874678333,0.02559,38973.0,38971.0,0.011]
[1645874678529,0.07699,38972.0,38971.0,0.011]
[1645874678929,0.12699,38972.0,38971.0,0.011]
[1645874679930,0.42799,38972.0,38971.0,0.011]
[1645874680132,0.52799,38972.0,38971.0,0.011]
[1645874681270,0.52699,38972.0,38971.0,0.011]
[1645874682071,0.52699,38972.0,38971.0,0.01]
[1645874682072,1.31109,38972.0,38971.0,0.01]
[1645874682273,1.66099,38972.0,38971.0,0.01]
[1645874682470,1.83415948,38972.0,38971.0,0.01]
[1645874682671,1.84427069,38972.0,38971.0,0.01]
[1645874682869,1.74427069,38972.0,38971.0,0.01]
[1645874683071,1.84427069,38972.0,38971.0,0.01]
[1645874683272,0.02559,38970.0,38961.0,0.05]
[1645874683472,0.02559,38970.0,38960.0,0.001]
[1645874683473,0.02559,38964.0,38960.0,0.001]
[1645874683675,0.02559,38962.0,38960.0,0.001]
[1645874683874,0.86009,38961.0,38960.0,0.001]
[1645874684149,0.07699,38961.0,38960.0,0.001]
[1645874684344,0.0514,38961.0,38960.0,0.001]
[1645874684743,0.1014,38961.0,38960.0,0.001]
[1645874686351,0.0514,38961.0,38960.0,0.00070188]
[1645874688366,0.05126708,38961.0,38960.0,0.00070188]
[1645874689369,0.2249,38964.0,38960.0,0.00070188]
[1645874689569,0.1999,38964.0,38960.0,0.00070188]
[1645874689969,0.0999,38964.0,38960.0,0.00070188]
[1645874690171,0.0999,38964.0,38960.0,0.00100224]
[1645874690471,0.0999,38964.0,38962.0,0.21164897]
[1645874694031,0.1009,38964.0,38962.0,0.21164897]
[1645874694239,0.1009,38964.0,38963.0,0.3]
[1645874695231,0.0999,38964.0,38963.0,0.678415]
[1645874695673,0.0999,38964.0,38963.0,0.3]
[1645874695870,0.0999,38964.0,38963.0,0.002]
[1645874697275,0.0999,38964.0,38962.0,0.00030036]
[1645874697673,0.0999,38964.0,38962.0,0.19692116]
[1645874698073,0.0999,38964.0,38962.0,0.19892116]
[1645874698274,0.0999,38964.0,38962.0,0.1986208]
[1645874699122,0.0999,38964.0,38962.0,0.1966208]
[1645874699718,0.064209,38971.0,38962.0,0.1966208]
[1645874699918,0.0999,38964.0,38963.0,0.3]
[1645874700119,0.0999,38964.0,38962.0,0.1996208]
[1645874700920,0.064209,38971.0,38962.0,0.1996208]
[1645874701219,0.0999,38964.0,38961.0,0.00030014]
[1645874701622,0.01985997,38964.0,38961.0,0.00030014]
[1645874701822,0.0198,38964.0,38961.0,0.00030014]
[1645874702026,0.0198,38964.0,38960.0,0.00070188]
[1645874702222,0.0198,38964.0,38961.0,0.00030014]
[1645874702873,0.0198,38964.0,38962.0,0.404005]
[1645874703177,0.6808,38977.0,38966.0,0.378415]
[1645874703178,0.13526,38976.0,38966.0,0.378415]
[1645874703372,0.125,38976.0,38967.0,0.3]
[1645874703571,0.125,38976.0,38970.0,0.21364286]
[1645874703971,0.01026,38981.0,38970.0,0.21364286]
[1645874704974,0.01026,38981.0,38971.0,0.704005]
[1645874705173,0.108,38982.0,38971.0,0.678415]
[1645874705372,0.108,38982.0,38977.0,0.22057841]
[1645874705573,0.108,38982.0,38973.0,0.3]
[1645874705772,0.108,38982.0,38969.0,0.3]
[1645874705975,0.009,38982.0,38972.0,0.001]
[1645874707227,0.009,38982.0,38971.0,0.50950926]
[1645874707228,0.008,38982.0,38971.0,0.50950926]
[1645874708024,0.008,38982.0,38971.0,0.50071386]
[1645874709924,0.008,38982.0,38971.0,0.49871386]
[1645874710770,0.008,38982.0,38974.0,6.105e-05]
[1645874712171,0.009,38982.0,38974.0,6.105e-05]
[1645874713273,0.008,38982.0,38974.0,6.105e-05]
[1645874713572,0.008,38982.0,38977.0,0.22984571]
[1645874713772,0.008,38982.0,38978.0,0.3]
[1645874714424,0.008,38982.0,38979.0,0.378415]
[1645874714425,0.00782811,38982.0,38979.0,0.378415]
[1645874714724,0.00782811,38982.0,38980.0,0.3]
[1645874714928,0.00782811,38982.0,38978.0,0.3]
[1645874715625,0.00782811,38982.0,38978.0,0.319253]
[1645874716025,0.00782811,38982.0,38978.0,0.321253]
[1645874717029,0.00782811,38982.0,38978.0,0.002]
[1645874717330,0.00782811,38982.0,38974.0,0.3]
[1645874717979,0.00782811,38982.0,38977.0,0.21816948]
[1645874718278,0.138628,38991.0,38978.0,0.75]
[1645874718279,0.05,38991.0,38978.0,0.75]
[1645874718480,0.05,38991.0,38978.0,0.3]
[1645874718983,0.07559,38991.0,38974.0,0.3]
[1645874719179,0.17559,38991.0,38974.0,0.3]
[1645874719379,0.15,38991.0,38974.0,0.31025]
[1645874719979,0.064182,38988.0,38977.0,0.20255543]
[1645874720183,0.064182,38988.0,38978.0,0.3]
[1645874720381,0.15,38991.0,38978.0,0.3]
[1645874721480,0.0003005,38989.0,38983.0,0.00030055]
[1645874722324,0.2,38991.0,38978.0,0.3]
[1645874722526,0.00030051,38989.0,38984.0,0.00030055]
[1645874723626,0.2,38991.0,38977.0,0.20255543]
[1645874723826,0.064183,38988.0,38985.0,0.00030055]
[1645874724828,0.064183,38988.0,38978.0,0.3]
[1645874725029,0.064183,38988.0,38985.0,0.00030055]
[1645874725770,0.00030051,38989.0,38985.0,0.00030055]
[1645874725971,0.2,38991.0,38978.0,0.3]
[1645874726172,0.001,38988.0,38985.0,0.00030055]
[1645874726973,0.001,38988.0,38987.0,0.18329574]
[1645874728072,0.00030051,38989.0,38987.0,0.18329574]
[1645874728472,0.002,38993.0,38987.0,0.18329574]
[1645874728674,0.00030051,38990.0,38987.0,0.18329574]
[1645874729631,0.18917,38996.0,38987.0,0.18329574]
[1645874730030,0.00330051,38990.0,38987.0,0.18329574]
[1645874730731,0.00330051,38990.0,38985.0,0.00030055]
[1645874731431,0.00030051,38990.0,38985.0,0.00030055]
[1645874732031,0.001,38990.0,38983.0,0.17629061]
[1645874732231,0.00030051,38989.0,38985.0,0.00030055]
[1645874733186,0.001,38990.0,38983.0,0.17629061]
[1645874733384,0.21476,38996.0,38985.0,0.00030054]
[1645874733584,0.00030051,38989.0,38985.0,0.00030054]
[1645874734385,0.21576,38996.0,38983.0,0.17629061]
[1645874734584,0.21576,38996.0,38985.0,0.00030054]
[1645874734784,0.00030051,38989.0,38985.0,0.00030054]
[1645874735690,0.025,38996.0,38984.0,0.3]
[1645874735887,0.025,38996.0,38985.0,0.00030054]
[1645874735888,0.00030051,38989.0,38985.0,0.00030054]
[1645874736086,0.00030051,38989.0,38986.0,0.019249]
[1645874736289,0.00086051,38994.0,38986.0,0.769249]
[1645874736487,0.00086051,38994.0,38986.0,0.019249]
[1645874737125,0.00086051,38994.0,38985.0,0.001]
[1645874737324,0.025,38996.0,38982.0,0.3]
[1645874737524,0.025,38996.0,38980.0,0.31025]
[1645874737927,0.025,38996.0,38984.0,0.01925]
[1645874738431,0.025,38996.0,38980.0,0.31325]
[1645874738825,0.05059,38996.0,38980.0,0.31325]
[1645874739229,0.02559,38992.0,38980.0,0.01325]
[1645874739428,0.0514,38991.0,38986.0,0.00012727]
[1645874739631,0.02559,38990.0,38986.0,0.00012727]
[1645874739826,0.0514,38989.0,38986.0,0.00012727]
[1645874740485,0.0514,38989.0,38979.0,0.1249]
[1645874740684,0.0514,38989.0,38986.0,0.00030054]
[1645874740886,0.115583,38989.0,38986.0,0.00030054]
[1645874741686,0.115583,38989.0,38979.0,0.4249]
[1645874741987,0.115583,38989.0,38986.0,0.00030054]
[1645874742186,0.117583,38989.0,38986.0,0.00030054]
[1645874742886,0.117583,38989.0,38987.0,0.64639187]
[1645874743288,0.115583,38989.0,38987.0,0.64639187]
[1645874744122,0.117583,38989.0,38987.0,0.64639187]
[1645874745323,0.115583,38989.0,38987.0,0.64639187]
[1645874746126,0.117583,38989.0,38987.0,0.64639187]
[1645874746332,0.1166711,38989.0,38987.0,0.64639187]
[1645874747427,0.0504881,38989.0,38987.0,0.64639187]
[1645874747627,0.1003005,38991.0,38987.0,0.64639187]
[1645874747628,0.1,38991.0,38987.0,0.64639187]
[1645874747879,0.1003005,38991.0,38987.0,0.64639187]
[1645874748078,0.002,38989.0,38987.0,0.64639187]
[1645874748891,0.06618,38989.0,38987.0,0.64639187]
[1645874749481,0.06418,38989.0,38987.0,0.64639187]
[1645874750081,0.06518,38989.0,38987.0,0.64639187]
[1645874751489,0.06418,38989.0,38987.0,0.64639187]
[1645874754140,0.06518,38989.0,38987.0,0.64639187]
[1645874755388,0.06418,38989.0,38987.0,0.64639187]
[1645874758186,0.06618,38989.0,38987.0,0.64639187]
[1645874759430,0.06418,38989.0,38987.0,0.64639187]
[1645874760227,0.06618,38989.0,38987.0,0.64639187]
[1645874761429,0.06418,38989.0,38987.0,0.64639187]
[1645874762876,0.19566926,38991.0,38987.0,0.64639187]
[1645874763177,0.19539,38991.0,38987.0,0.64639187]
[1645874763579,0.19566927,38991.0,38987.0,0.64639187]
[1645874763876,0.17007927,38991.0,38987.0,0.64639187]
[1645874764477,0.1698,38991.0,38987.0,0.64639187]
[1645874764679,0.17007929,38991.0,38987.0,0.64639187]
[1645874764878,0.12007929,38991.0,38988.0,0.3]
[1645874765279,0.12007929,38991.0,38987.0,0.64639187]
[1645874765576,0.0198,38991.0,38988.0,0.21237598]
[1645874765977,0.02007929,38991.0,38988.0,0.21237598]
[1645874766178,0.02207929,38991.0,38988.0,0.21237598]
[1645874766379,0.02207929,38991.0,38988.0,0.51237598]
[1645874766625,0.02207929,38991.0,38988.0,0.21237598]
[1645874766827,0.0218,38991.0,38988.0,0.21237598]
[1645874767132,0.02207929,38991.0,38988.0,0.21237598]
[1645874767526,0.02007929,38991.0,38988.0,0.21237598]
[1645874767726,0.01140591,38991.0,38988.0,0.21237598]
[1645874768227,0.01141646,38991.0,38988.0,0.21237598]
[1645874768628,0.00028984,38991.0,38988.0,0.21237598]
[1645874768828,0.01138984,38991.0,38988.0,0.21237598]
[1645874769327,0.0111,38991.0,38988.0,0.21237598]
[1645874769529,0.01138984,38991.0,38988.0,0.21228062]
[1645874770382,0.0111,38991.0,38988.0,0.21228062]
[1645874770582,0.01138984,38991.0,38988.0,0.21228062]
[1645874771182,0.01138984,38991.0,38988.0,0.51228062]
[1645874771581,0.0111,38991.0,38988.0,0.51228062]
[1645874771982,0.01139052,38991.0,38988.0,0.21228062]
[1645874772182,0.01439052,38991.0,38988.0,0.51228062]
[1645874772383,0.01439052,38991.0,38988.0,0.21228062]
[1645874772782,0.0141,38991.0,38988.0,0.51228062]
[1645874773283,0.01439052,38991.0,38988.0,0.51228062]
[1645874773492,0.01139052,38991.0,38988.0,0.51228062]